bitfinex-derivatives/quotes_SOLF0:USTF0_20250522
["timestamp","ask_amount","ask_price","bid_price","bid_amount"]
[1747885556407,0.84463308,176.21,176.14,6.52799932]
[1747885556703,0.03617141,176.19,176.16,6.57000287]
[1747885557007,0.03617141,176.19,176.18,5.6742]
[1747885557203,490.8,176.31,176.18,5.6742]
[1747885557204,7.40723714,176.35,176.18,310.52799932]
[1747885557397,7.40723714,176.35,176.21,6.52799932]
[1747885557603,7.40723714,176.35,176.21,5.6732]
[1747885557899,7.40723714,176.35,176.22,1.9249]
[1747885558095,5.6713,176.28,176.27,0.04035214]
[1747885559300,5.6708,176.29,176.27,0.04035214]
[1747885559508,0.04348301,176.3,176.27,0.04035214]
[1747885559809,5.671,176.28,176.27,0.04035214]
[1747885560213,5.6708,176.29,176.27,0.04035214]
[1747885560415,0.04348301,176.3,176.27,1.45915045]
[1747885560911,5.671,176.28,176.27,1.45915045]
[1747885561112,5.671,176.28,176.27,0.04035214]
[1747885562312,5.6725,176.24,176.16,1.9249]
[1747885562505,10.61990772,176.34,176.16,1.9249]
[1747885563206,0.03616873,176.27,176.23,0.04271512]
[1747885563405,0.03616873,176.27,176.13,2.1055]
[1747885563607,220.3,176.29,176.05,10.61990772]
[1747885563608,10.61990772,176.26,176.05,10.61990772]
[1747885563810,2.089,176.25,176.05,10.61990772]
[1747885564107,2.089,176.25,176.03,6.0401]
[1747885564306,5.6755,176.15,176.03,6.0401]
[1747885564509,0.04146384,176.11,176.07,0.03927605]
[1747885564707,2.089,176.25,176.07,0.04087507]
[1747885564909,0.03803927,176.18,176.14,0.0402263]
[1747885565107,0.03803927,176.18,176.14,0.03770579]
[1747885565708,0.7668372,176.41,176.15,10.6278652]
[1747885566013,14.59228496,176.38,176.17,10.62191221]
[1747885566215,14.59228496,176.38,176.18,220.3]
[1747885566412,220.3,176.37,176.18,220.3]
[1747885566613,220.3,176.37,176.19,1.9376]
[1747885566913,0.04068457,176.29,176.25,0.04207693]
[1747885569008,0.04068457,176.29,176.25,5.71397693]
[1747885569209,0.04068457,176.29,176.25,0.04207693]
[1747885569614,0.04068457,176.29,176.25,5.71377693]
[1747885569915,0.04068457,176.29,176.25,0.04207693]
[1747885570713,5.6711,176.28,176.25,0.04207693]
[1747885570907,0.04068457,176.29,176.25,0.04207693]
[1747885571515,5.6717,176.26,176.25,0.04207693]
[1747885571709,2.102,176.28,176.13,2.1026]
[1747885572410,2.102,176.28,176.12,490.54]
[1747885572711,5.6749,176.16,176.1,220.0568]
[1747885572912,0.03727475,176.15,176.11,0.036328]
[1747885573113,5.6727,176.23,176.15,5.6751]
[1747885573310,0.04330891,176.21,176.17,0.03769042]
[1747885573515,1.9718,176.34,176.17,2.13921785]
[1747885573712,1.9718,176.34,176.18,1.41890897]
[1747885574112,12.59371221,176.34,176.2,5.6736]
[1747885574312,12.59371221,176.34,176.18,1.41890897]
[1747885574516,0.041305,176.27,176.23,0.04014816]
[1747885574718,0.041305,176.27,176.23,5.71254816]
[1747885575413,0.041305,176.27,176.23,0.04014816]
[1747885575807,3.97037275,176.38,176.23,0.04014816]
[1747885576018,3.97037275,176.38,176.19,214.42]
[1747885576213,3.97037275,176.38,176.23,10.62191221]
[1747885576418,3.97037275,176.38,176.28,5.671]
[1747885576815,0.04090776,176.33,176.3,0.03924971]
[1747885578516,0.04090776,176.33,176.3,5.70954971]
[1747885578715,0.04090776,176.33,176.3,0.03924971]
[1747885579013,0.04090776,176.33,176.31,1.41861911]
[1747885580422,0.04090776,176.33,176.32,5.6697]
[1747885580620,0.04090776,176.33,176.3,0.03924971]
[1747885580822,0.04090776,176.33,176.32,5.6697]
[1747885581525,0.04090776,176.33,176.31,7.7589]
[1747885581724,0.04090776,176.33,176.31,2.0889]
[1747885582515,3.97037275,176.38,176.31,2.0889]
[1747885583215,3.97037275,176.38,176.32,12.04000542]
[1747885583419,3.97037275,176.38,176.32,1.41809321]
[1747885583729,0.03746204,176.37,176.32,1.41809321]
[1747885584029,0.03746204,176.37,176.31,2.0889]
[1747885584431,0.03746204,176.37,176.35,5.6688]
[1747885584928,3.97037275,176.38,176.35,5.6688]
[1747885585122,3.97037275,176.38,176.34,214.33956347]
[1747885585322,0.7668372,176.41,176.35,10.62191221]
[1747885585725,0.7668372,176.41,176.34,214.33956347]
[1747885585931,0.04270402,176.39,176.34,224.96147568]
[1747885587221,0.04270402,176.39,176.34,0.03956347]
[1747885588329,0.04270402,176.39,176.35,1.41798573]
[1747885589327,5.71020402,176.39,176.34,0.03956347]
[1747885589725,5.6679,176.38,176.34,0.03956347]
[1747885590328,5.6684,176.37,176.34,0.03956347]
[1747885590727,5.6679,176.38,176.34,0.03956347]
[1747885590926,0.04270402,176.39,176.34,0.03956347]
[1747885591729,0.04270402,176.39,176.34,5.70856347]
[1747885591926,0.04270402,176.39,176.35,1.41790884]
[1747885592632,0.04270402,176.39,176.36,1.41784465]
[1747885593226,0.04270402,176.39,176.37,5.6679]
[1747885596127,0.04270402,176.39,176.34,2.09896347]
[1747885596828,0.04270402,176.39,176.35,5.6685]
[1747885597030,0.04270402,176.39,176.34,2.09896347]
[1747885597325,0.04270402,176.39,176.36,5.6684]
[1747885597526,0.04270402,176.39,176.34,2.09896347]
[1747885598031,0.04270402,176.39,176.38,1.41758801]
[1747885598221,0.7668372,176.41,176.38,1.41758801]
[1747885599129,0.7668372,176.41,176.38,0.04253529]
[1747885599835,0.7668372,176.41,176.39,1.41759032]
[1747885600445,0.7668372,176.41,176.38,0.04253529]
[1747885601239,0.7668372,176.41,176.38,5.71033529]
[1747885601429,0.7668372,176.41,176.38,0.04253529]
[1747885601732,3.9436,176.48,176.38,0.04253529]
[1747885601938,3.9436,176.48,176.38,2.00553529]
[1747885602540,5.6652,176.47,176.41,5.6666]
[1747885602731,5.6652,176.47,176.42,0.04146639]
[1747885603339,3.9436,176.48,176.42,5.70796639]
[1747885603634,9.6085,176.48,176.42,5.70796639]
[1747885603933,3.9436,176.48,176.43,5.6661]
[1747885604138,5.6629,176.54,176.44,10.62191221]
[1747885604338,2.0159,176.54,176.47,0.03949341]
[1747885604728,5.6637,176.51,176.47,0.03949341]
[1747885604935,2.0159,176.54,176.47,0.03949341]
[1747885605139,2.0159,176.54,176.48,1.4170511]
[1747885605830,2.0159,176.54,176.47,0.03949341]
[1747885606233,5.6646,176.48,176.47,0.03949341]
[1747885606636,0.04234335,176.49,176.38,12.58491221]
[1747885606835,2.0159,176.54,176.38,12.58491221]
[1747885607328,2.0159,176.54,176.44,10.62191221]
[1747885607529,0.03919543,176.51,176.47,0.03795408]
[1747885607735,5.6646,176.48,176.47,0.03795408]
[1747885608242,5.66,176.48,176.39,7.771]
[1747885608539,207.68,176.51,176.39,2.1037]
[1747885608835,207.68,176.51,176.4,5.6669]
[1747885609038,5.6654,176.46,176.39,2.1037]
[1747885609238,207.68,176.51,176.41,0.0411277]
[1747885609239,0.0393067,176.44,176.41,0.0411277]
[1747885609645,5.7052067,176.44,176.41,0.0411277]
[1747885609941,0.0393067,176.44,176.41,0.0411277]
[1747885611546,5.6637,176.51,176.41,0.0411277]
[1747885611937,2.0159,176.54,176.41,0.0411277]
[1747885612242,2.0159,176.54,176.43,10.62191221]
[1747885612437,209.7617,176.58,176.43,10.62191221]
[1747885612743,0.03718835,176.52,176.49,0.03843325]
[1747885613146,0.03718835,176.52,176.5,5.664]
[1747885614042,0.03718835,176.52,176.51,5.6637]
[1747885615235,2.0817,176.58,176.54,5.6627]
[1747885615451,2.0389,176.6,176.54,5.6627]
[1747885616041,2.0389,176.6,176.53,5.663]
[1747885616246,2.0389,176.6,176.49,10.62191221]
[1747885616451,7.7,176.6,176.55,0.04138652]
[1747885617549,5.6613,176.59,176.55,0.04138652]
[1747885617853,2.0389,176.6,176.44,1.9782]
[1747885618350,2.0389,176.6,176.47,10.62191221]
[1747885618653,5.6614,176.59,176.47,10.62191221]
[1747885618952,0.03831273,176.55,176.51,0.04309269]
[1747885619852,0.03831273,176.55,176.52,5.6631]
[1747885620053,0.03831273,176.55,176.51,0.04309269]
[1747885620650,0.03831273,176.55,176.52,1.41656643]
[1747885620855,0.03831273,176.55,176.53,5.6628]
[1747885621158,0.03831273,176.55,176.52,1.41656643]
[1747885621645,0.03831273,176.55,176.51,0.04309269]
[1747885622151,0.03831273,176.55,176.52,1.41639576]
[1747885623051,0.03831273,176.55,176.51,5.70679269]
[1747885623258,0.03831273,176.55,176.51,0.04309269]
[1747885623949,0.79275659,176.61,176.51,0.04309269]
[1747885624160,0.79275659,176.61,176.59,5.661]
[1747885624354,0.79275659,176.61,176.53,217.04191221]
[1747885625057,0.02199874,176.59,176.55,0.04304804]
[1747885625254,0.79275659,176.61,176.55,0.04304804]
[1747885625564,3.97037275,176.77,176.59,10.62191221]
[1747885625752,2.016,176.75,176.63,10.62191221]
[1747885626155,17.7082062,176.72,176.67,10.62191221]
[1747885626360,17.7082062,176.72,176.68,0.04055625]
[1747885626557,3.97037275,176.77,176.68,0.04055625]
[1747885627355,3.97037275,176.77,176.71,5.6573]
[1747885627559,3.97037275,176.77,176.72,0.03972889]
[1747885629964,0.03972889,176.76,176.55,10.62191221]
[1747885630276,206.32,176.76,176.61,14.75061221]
[1747885630568,206.32,176.76,176.61,2.0575]
[1747885630763,206.32,176.76,176.58,206.32]
[1747885630764,313.94,176.76,176.58,206.32]
[1747885631069,0.03646882,176.69,176.53,2.0575]
[1747885631266,206.28,176.68,176.52,206.28]
[1747885631474,206.28,176.68,176.5,2.0591]
[1747885631475,107.62,176.67,176.63,7.961e-05]
[1747885631671,118.24191221,176.67,176.53,2.60523207]
[1747885632168,0.0423666,176.62,176.58,0.04223708]
[1747885632369,5.6631,176.54,176.47,5.6649]
[1747885632568,2.0604,176.61,176.46,218.95941221]
[1747885633374,0.03649632,176.55,176.52,0.04015239]
[1747885633578,0.03649632,176.55,176.53,1.41649488]
[1747885634174,5.6628,176.54,176.53,1.41649488]
[1747885634474,0.03649632,176.55,176.52,0.04015239]
[1747885634875,3.97037275,176.77,176.53,10.58615871]
[1747885635066,2.0604,176.76,176.49,107.62]
[1747885635374,5.6594,176.65,176.54,10.58269532]
[1747885635775,206.32,176.7,176.54,10.58269532]
[1747885636075,206.32,176.7,176.6,0.04319197]
[1747885636076,0.0414633,176.64,176.6,0.04319197]
[1747885636470,5.7014633,176.64,176.46,2.0575]
[1747885636773,206.32,176.63,176.46,2.0575]
[1747885637377,206.32,176.63,176.53,1.249e-05]
[1747885637378,0.04051637,176.56,176.53,1.249e-05]
[1747885637573,5.6628,176.54,176.53,1.249e-05]
[1747885637768,206.32,176.54,176.37,12.64319532]
[1747885638073,206.32,176.54,176.37,7.7288]
[1747885638276,206.32,176.54,176.37,2.0605]
[1747885638474,0.03723526,176.47,176.44,0.03741084]
[1747885638782,0.03680009,176.47,176.44,0.03741084]
[1747885639976,5.6654,176.46,176.29,695.74]
[1747885640274,19.50203986,176.69,176.45,10.59203986]
[1747885640480,2.0667,176.65,176.51,10.59203986]
[1747885640677,8.91,176.69,176.59,10.58043787]
[1747885640980,0.04263043,176.66,176.62,0.04231271]
[1747885641282,0.03625782,176.66,176.62,0.04231271]
[1747885642881,8.91,176.69,176.64,10.57848318]
[1747885643183,206.34,176.79,176.64,10.57848318]
[1747885643576,206.34,176.79,176.67,5.6586]
[1747885643777,14.15870767,176.76,176.65,16.06153376]
[1747885643980,0.04327801,176.72,176.69,0.04031187]
[1747885644478,13.51474297,176.76,176.69,0.04031187]
[1747885644680,13.51474297,176.76,176.69,16.10184563]
[1747885644877,13.51474297,176.76,176.69,0.04031187]
[1747885645072,13.51474297,176.76,176.72,16.06153376]
[1747885645278,15.52037275,176.77,176.69,0.04031187]
[1747885645279,15.52037275,176.77,176.7,16.06153376]
[1747885645478,0.03952825,176.75,176.71,1.41503749]
[1747885646380,0.03952825,176.75,176.69,0.04031187]
[1747885647279,0.03952825,176.75,176.7,16.06153376]
[1747885647579,0.03952825,176.75,176.69,0.04031187]
[1747885647883,0.03952825,176.75,176.7,1.41492181]
[1747885648584,0.03952825,176.75,176.69,0.04031187]
[1747885648888,0.03952825,176.75,176.7,1.4151582]
[1747885650081,0.03952825,176.75,176.69,0.04031187]
[1747885650983,0.03952825,176.75,176.69,5.69831187]
[1747885651183,0.03952825,176.75,176.69,0.04031187]
[1747885651483,0.03952825,176.75,176.71,21.71873376]
[1747885652182,0.03952825,176.75,176.71,1.9901]
[1747885654479,0.03952825,176.75,176.69,0.04031187]
[1747885656584,0.03952825,176.75,176.7,1.41498746]
[1747885657284,0.03952825,176.75,176.69,0.04031187]
[1747885658589,5.69592825,176.75,176.69,0.04031187]
[1747885659388,5.6566,176.74,176.69,0.04031187]
[1747885659585,0.03952825,176.75,176.69,0.04031187]
[1747885659892,5.69572825,176.75,176.69,0.04031187]
[1747885660094,0.03952825,176.75,176.69,0.04031187]
[1747885661194,0.03952825,176.75,176.7,1.41512237]
[1747885661493,15.52037275,176.77,176.71,201.04]
[1747885661697,15.52037275,176.77,176.73,16.06153376]
[1747885661888,15.52037275,176.77,176.71,201.04]
[1747885662290,0.04164478,176.76,176.72,0.0423235]
[1747885662499,21.17587275,176.77,176.72,0.0423235]
[1747885662500,20.56570577,176.81,176.73,16.06153376]
[1747885662691,19.83,176.81,176.79,21.71623376]
[1747885662889,5.6526,176.86,176.79,16.06153376]
[1747885663087,3.8509,176.92,176.79,16.06153376]
[1747885663286,3.8509,176.92,176.81,16.06153376]
[1747885663494,0.04256517,176.88,176.85,0.03751813]
[1747885664294,0.04256517,176.88,176.86,5.6525]
[1747885664898,0.04256517,176.88,176.85,16.09905189]
[1747885665503,0.04256517,176.88,176.85,0.03751813]
[1747885666302,5.6526,176.86,176.85,0.03751813]
[1747885667805,5.6526,176.86,176.85,1.813e-05]
[1747885668096,5.6523,176.87,176.85,1.813e-05]
[1747885668307,0.04256517,176.88,176.85,1.813e-05]
[1747885669198,5.6526,176.86,176.85,1.813e-05]
[1747885670302,0.04256517,176.88,176.85,1.813e-05]
[1747885672896,5.6523,176.87,176.85,1.813e-05]
[1747885673199,0.04256517,176.88,176.85,1.813e-05]
[1747885673502,5.6523,176.87,176.85,1.813e-05]
[1747885673810,0.04256517,176.88,176.85,1.813e-05]
[1747885674497,5.6526,176.86,176.85,1.813e-05]
[1747885678102,11.3126,176.86,176.85,1.813e-05]
[1747885678604,5.6526,176.86,176.85,1.813e-05]
[1747885678997,11.3126,176.86,176.85,1.813e-05]
[1747885679504,5.6526,176.86,176.85,1.813e-05]
[1747885681605,11.3126,176.86,176.85,1.813e-05]
[1747885681913,11.3126,176.86,176.7,4.013]
[1747885681914,314.06,176.86,176.7,9.6707]
[1747885682107,308.4,176.86,176.68,1.9093]
[1747885682910,0.03943756,176.79,176.75,0.03775185]
[1747885683103,0.03943756,176.79,176.75,0.03775404]
[1747885683505,11.2988,176.97,176.76,10.55904074]
[1747885683707,4.1519,176.98,176.78,10.55693474]
[1747885683908,4.1519,176.98,176.82,10.55693474]
[1747885684104,5.6504,176.93,176.85,5.6528]
[1747885684406,4.1519,176.98,176.83,10.55693474]
[1747885684608,0.03810671,176.92,176.89,0.04294821]
[1747885685004,0.03810671,176.92,176.89,5.69454821]
[1747885685608,0.03810671,176.92,176.89,0.04294821]
[1747885686914,18.32,176.97,176.9,16.02501172]
[1747885687109,18.32,176.97,176.9,18.12351172]
[1747885687712,18.32,176.97,176.9,2.0985]
[1747885688013,0.77171297,177.01,176.94,16.02501172]
[1747885688210,0.77171297,177.01,176.96,0.03902932]
[1747885689715,5.6491,176.97,176.96,0.03902932]
[1747885689913,0.77171297,177.01,176.96,0.03902932]
[1747885691312,0.77171297,177.01,176.96,5.68842932]
[1747885691812,0.77171297,177.01,176.96,0.03902932]
[1747885694115,0.77171297,177.01,176.98,5.6485]
[1747885694916,0.77171297,177.01,176.99,5.6484]
[1747885695215,0.77171297,177.01,176.96,0.03902932]
[1747885695417,0.77171297,177.01,176.96,5.68812932]
[1747885695610,0.77171297,177.01,176.96,0.03902932]
[1747885697515,5.6488,176.98,176.96,0.03902932]
[1747885697917,0.77171297,177.01,176.96,0.03902932]
[1747885699112,5.6491,176.97,176.96,0.03902932]
[1747885700424,0.77171297,177.01,176.84,18.10971172]
[1747885700623,2.0255,176.96,176.84,2.0847]
[1747885701624,0.04321149,176.92,176.88,0.03649908]
[1747885702827,195.78,176.91,176.77,5.8893]
[1747885703030,195.78,176.91,176.75,211.80501172]
[1747885703224,5.6557,176.77,176.72,599.7656]
[1747885703432,195.78,176.84,176.72,111.3856]
[1747885703630,3.9044,176.83,176.72,111.3856]
[1747885703838,0.0372069,176.79,176.76,0.03820304]
[1747885705229,488.4,176.91,176.76,0.03820304]
[1747885705528,189.68,176.9,176.78,16.02501172]
[1747885705723,189.68,176.9,176.76,189.68]
[1747885705924,5.6544,176.81,176.76,189.68]
[1747885706130,1.9927,176.89,176.76,189.68]
[1747885706331,0.0411598,176.84,176.81,0.04042703]
[1747885707634,5.6944598,176.84,176.81,0.04042703]
[1747885707837,0.0411598,176.84,176.81,0.04042703]
[1747885708638,0.0411598,176.84,176.81,16.06543875]
[1747885708829,0.0411598,176.84,176.82,5.6536]
[1747885709031,0.0411598,176.84,176.81,16.06543875]
[1747885709332,0.0411598,176.84,176.81,0.04042703]
[1747885710539,1.9384,176.91,176.81,0.04042703]
[1747885712031,4.073,176.95,176.81,0.04042703]
[1747885712230,4.073,176.95,176.86,0.03777461]
[1747885712431,4.073,176.95,176.88,5.6517]
[1747885712631,4.073,176.95,176.9,0.03753591]
[1747885712834,2.0693,176.95,176.9,0.03753591]
[1747885715139,2.0693,176.95,176.91,1.41322554]
[1747885716138,2.0693,176.95,176.9,0.03753591]
[1747885716538,2.0465,176.98,176.9,0.03753591]
[1747885716838,1.986,176.97,176.9,0.03753591]
[1747885717735,5.6499,176.95,176.9,0.03753591]
[1747885717938,1.986,176.97,176.9,0.03753591]
[1747885718240,5.65,176.94,176.9,0.03753591]
[1747885718436,1.986,176.97,176.9,0.03753591]
[1747885718631,5.6509,176.91,176.9,0.03753591]
[1747885718939,107.44,176.94,176.77,2.0034]
[1747885719129,5.6516,176.89,176.81,5.654]
[1747885719332,107.44,176.94,176.77,2.0034]
[1747885719739,0.03919953,176.87,176.85,10.55590576]
[1747885719944,1.986,176.97,176.85,200.29590576]
[1747885720243,1.986,176.97,176.85,189.74]
[1747885720438,5.6495,176.96,176.87,5.6521]
[1747885720637,1.986,176.97,176.85,189.74]
[1747885720841,5.6508,176.92,176.89,0.03756627]
[1747885721045,1.986,176.97,176.89,0.03756627]
[1747885722637,189.74,176.96,176.89,0.03756627]
[1747885723338,5.6511,176.91,176.89,0.03756627]
[1747885723539,189.74,176.96,176.89,0.03756627]
[1747885723745,0.03879616,176.92,176.82,189.74]
[1747885724740,0.03879616,176.92,176.85,0.03782246]
[1747885724945,0.03879616,176.9,176.85,0.03782246]
[1747885726245,5.6525,176.86,176.85,0.03782246]
[1747885726437,191.6724,176.89,176.75,488.58]
[1747885726646,2.0879,176.85,176.74,189.74]
[1747885726946,107.44,176.84,176.68,191.7997]
[1747885727247,107.44,176.84,176.67,1.9628]
[1747885727446,0.03625223,176.77,176.74,0.04074086]
[1747885727750,189.76,176.78,176.66,3.245952]
[1747885728352,5.6576,176.71,176.66,3.245952]
[1747885728649,0.03636111,176.7,176.67,0.04281727]
[1747885728848,0.03873125,176.7,176.69,5.658]
[1747885729053,1.9988,176.77,176.67,0.04078479]
[1747885729256,1.9988,176.77,176.69,16.03202638]
[1747885729454,1.9988,176.77,176.72,5.6569]
[1747885729957,1.9988,176.77,176.73,0.03976206]
[1747885729958,0.04057442,176.76,176.73,0.03976206]
[1747885730453,0.04057442,176.76,176.73,16.07178844]
[1747885731056,0.04057442,176.76,176.75,5.656]
[1747885731455,0.04057442,176.76,176.73,0.03976206]
[1747885731851,0.04057442,176.76,176.74,16.03202638]
[1747885732052,2.0331,176.82,176.74,16.03202638]
[1747885732353,2.0331,176.82,176.75,1.41450877]
[1747885732857,5.6545,176.8,176.75,1.41450877]
[1747885733153,0.03805381,176.79,176.76,5.69725787]
[1747885733548,0.03805381,176.79,176.76,0.04175787]
[1747885735554,5.6552,176.78,176.76,0.04175787]
[1747885735744,5.6552,176.78,176.72,5.657]
[1747885735950,0.03805381,176.79,176.72,5.657]
[1747885736149,0.03805381,176.79,176.7,16.03202638]
[1747885736352,2.0879,176.85,176.67,189.8]
[1747885736353,2.0879,176.85,176.75,16.03202638]
[1747885736545,2.0066,176.92,176.84,16.03202638]
[1747885737150,2.0589,176.94,176.77,1.9656]
[1747885737447,2.0589,176.94,176.87,16.03202638]
[1747885737655,0.03664723,176.92,176.89,0.03709909]
[1747885737853,0.03664723,176.92,176.91,5.6509]
[1747885738251,1.79,176.95,176.91,16.03202638]
[1747885739356,1.79,176.95,176.89,0.03709909]
[1747885739557,1.79,176.95,176.91,5.6509]
[1747885740254,1.79,176.95,176.89,0.03709909]
[1747885741155,1.79,176.95,176.9,16.03202638]
[1747885741749,1.79,176.95,176.89,5.68869909]
[1747885741956,1.79,176.95,176.89,0.03709909]
[1747885744061,5.6502,176.94,176.89,0.03709909]
[1747885744455,1.79,176.95,176.89,0.03709909]
[1747885745063,5.6501,176.94,176.89,0.03709909]
[1747885745362,1.79,176.95,176.89,0.03709909]
[1747885746465,5.65,176.94,176.89,0.03709909]
[1747885746660,1.79,176.95,176.89,0.03709909]
[1747885747961,185.6783,177.04,176.92,10.54291614]
[1747885748161,185.6783,177.04,176.95,0.04201523]
[1747885749063,5.6474,177.03,176.95,5.69141523]
[1747885749265,185.6783,177.04,176.95,5.69141523]
[1747885749460,185.6783,177.04,176.95,0.04201523]
[1747885749660,6.41951297,177.01,176.95,0.04201523]
[1747885749959,0.77171297,177.01,176.95,0.04201523]
[1747885751069,0.77171297,177.01,176.95,5.69161523]
[1747885751263,0.77171297,177.01,176.95,0.04201523]
[1747885752366,5.6484,176.99,176.95,0.04201523]
[1747885752563,0.77171297,177.01,176.95,0.04201523]
[1747885752967,6.41971297,177.01,176.95,0.04201523]
[1747885753159,0.77171297,177.01,176.95,0.04201523]
[1747885753761,0.77171297,177.01,176.98,16.01128263]
[1747885753962,0.77171297,177.01,176.98,21.65988263]
[1747885754165,0.77171297,177.01,176.98,16.01128263]
[1747885754367,4.0109,177.11,176.98,16.01128263]
[1747885754671,5.6458,177.08,177.02,0.04108607]
[1747885754866,4.0109,177.11,177.02,0.04108607]
[1747885755161,5.6471,177.04,177.02,0.04108607]
[1747885755361,183.64,177.09,177.02,0.04108607]
[1747885756774,5.6462,177.06,177.02,0.04108607]
[1747885757075,183.64,177.09,177.02,0.04108607]
[1747885757975,185.7522,177.1,177.02,0.04108607]
[1747885759774,0.08,177.1,177.02,0.04108607]
[1747885760371,5.6466,177.05,177.02,0.04108607]
[1747885760678,0.08,177.1,177.02,0.04108607]
[1747885761163,183.58,177.09,177.02,0.04108607]
[1747885761368,5.6462,177.07,177.02,0.04108607]
[1747885761572,183.58,177.09,177.02,0.04108607]
[1747885761874,5.6466,177.05,177.02,0.04108607]
[1747885762073,183.58,177.09,177.02,0.04108607]
[1747885764075,5.6471,177.04,177.02,0.04108607]
[1747885764279,183.58,177.09,177.02,0.04108607]
[1747885764473,290.96,177.09,177.02,0.04108607]
[1747885765770,5.6466,177.05,177.02,0.04108607]
[1747885765973,290.96,177.09,177.02,0.04108607]
[1747885766378,5.6471,177.04,177.02,0.04108607]
[1747885767376,5.6471,177.03,177.02,0.04108607]
[1747885767979,5.6491,176.97,176.95,2.0712]
[1747885768177,5.6491,176.97,176.92,5.6504]
[1747885768376,290.96,177.09,176.9,178.66]
[1747885768579,16.97571551,177.06,176.88,4.1611]
[1747885768970,0.03855754,176.99,176.95,0.04063066]
[1747885769174,0.03855754,176.99,176.95,0.0366859]
[1747885769482,0.03855754,176.99,176.95,1.01605374]
[1747885770182,5.6494,176.96,176.95,0.0366859]
[1747885770980,5.6488,176.98,176.95,0.0366859]
[1747885771180,0.03855754,176.99,176.95,0.0366859]
[1747885771574,5.6488,176.98,176.95,0.0366859]
[1747885771775,0.03855754,176.99,176.95,0.0366859]
[1747885772277,0.03855754,176.99,176.95,2.1132859]
[1747885773382,0.03855754,176.99,176.95,7.7628859]
[1747885773686,0.03855754,176.99,176.96,1.41287829]
[1747885774780,0.03855754,176.99,176.95,2.1132859]
[1747885775878,0.03855754,176.99,176.97,5.6488]
[1747885776476,0.03855754,176.99,176.98,5.6487]
[1747885776884,0.03855754,176.99,176.95,2.1132859]
[1747885777083,0.03855754,176.99,176.95,7.7626859]
[1747885777283,0.03855754,176.99,176.95,2.1132859]
[1747885777681,0.03855754,176.99,176.96,5.6493]
[1747885778187,0.03855754,176.99,176.95,2.1132859]
[1747885779785,0.03855754,176.99,176.98,5.6487]
[1747885780388,0.03855754,176.99,176.95,2.1132859]
[1747885782384,0.03855754,176.99,176.97,0.97908157]
[1747885782790,0.03855754,176.99,176.98,5.6487]
[1747885785187,2.1763,177.1,176.98,5.66]
[1747885785391,5.6458,177.08,176.97,1.946]
[1747885785588,2.1763,177.1,176.97,1.946]
[1747885785986,5.647,177.04,176.97,1.946]
[1747885786184,2.1763,177.1,176.99,5.6484]
[1747885786386,2.1763,177.1,177.03,0.04114445]
[1747885786588,5.6464,177.06,177.03,0.04114445]
[1747885787087,5.6468,177.04,177.03,0.04114445]
[1747885787288,2.1763,177.1,177.03,0.04114445]
[1747885788291,5.6462,177.06,177.03,0.04114445]
[1747885788590,180.8163,177.1,177.03,0.04114445]
[1747885790495,2.1763,177.1,177.03,0.04114445]
[1747885790695,180.7963,177.1,177.03,0.04114445]
[1747885790898,5.6461,177.07,177.03,0.04114445]
[1747885791201,180.7963,177.1,177.03,0.04114445]
[1747885792795,5.6468,177.04,177.03,0.04114445]
[1747885792996,0.04019729,177.05,176.95,2.0766]
[1747885793294,5.6468,177.05,176.99,5.6481]
[1747885793495,180.7163,177.1,176.95,2.0766]
[1747885794098,5.68629065,177.04,177.01,0.03773648]
[1747885794298,0.03929065,177.04,177.01,0.03773648]
[1747885794496,0.03929065,177.04,177.01,5.68523648]
[1747885795298,8.44217898,177.12,177.02,178.62]
[1747885795504,1.9365,177.23,177.02,306.0617]
[1747885795798,1.9365,177.23,177.15,5.6431]
[1747885795997,1.9365,177.23,177.11,6.5188089]
[1747885796196,1.9365,177.23,177.03,21.0376]
[1747885796393,1.9365,177.23,177.11,1.9772]
[1747885796595,1.9365,177.23,177.14,0.04070267]
[1747885796796,1.9365,177.23,177.16,0.03684612]
[1747885796991,1.9365,177.23,177.17,0.03641814]
[1747885797196,1.9365,177.23,177.17,0.04275485]
[1747885797499,180.5565,177.23,177.17,0.04275485]
[1747885798195,2.0151,177.27,177.17,0.04275485]
[1747885798403,5.6412,177.22,177.17,0.04275485]
[1747885798700,4.009,177.26,177.17,0.04275485]